[Event "Early-Titled-Tuesday-Blitz-October-10-2023"]
[Site "Chess.com"]
[Date "2023.10.10"]
[Round "9"]
[White "Djager97"]
[Black "Abund"]
[Result "0-1"]
[WhiteElo "2608"]
[BlackElo "2796"]
[TimeControl "180+1"]
[EndTime "9:43:06 PDT"]
[Termination "Abund won by resignation"]

1. e4 {[%clk 0:03:00.9]} 1... e5 {[%clk 0:03:00.2]} 2. Nf3 {[%clk 0:03:00.9]}
2... Nc6 {[%clk 0:03:00.8]} 3. d4 {[%clk 0:03:01.4]} 3... exd4 {[%clk
0:03:00.9]} 4. Nxd4 {[%clk 0:03:02.3]} 4... Nf6 {[%clk 0:03:01.6]} 5. Nxc6
{[%clk 0:03:02.8]} 5... bxc6 {[%clk 0:03:02.5]} 6. e5 {[%clk 0:03:03.3]} 6...
Qe7 {[%clk 0:03:03]} 7. Qe2 {[%clk 0:03:03.9]} 7... Nd5 {[%clk 0:03:03.5]} 8. c4
{[%clk 0:03:04.8]} 8... Ba6 {[%clk 0:03:04]} 9. b3 {[%clk 0:03:04.9]} 9... g6
{[%clk 0:03:04.3]} 10. g3 {[%clk 0:03:05.6]} 10... Bg7 {[%clk 0:03:04]} 11. Bb2
{[%clk 0:03:06.3]} 11... O-O {[%clk 0:03:02.9]} 12. Bg2 {[%clk 0:03:07]} 12...
Rfe8 {[%clk 0:03:02]} 13. O-O {[%clk 0:03:06.9]} 13... Bxe5 {[%clk 0:03:02.6]}
14. Qxe5 {[%clk 0:03:07.8]} 14... Qxe5 {[%clk 0:03:03.5]} 15. Bxe5 {[%clk
0:03:08.3]} 15... Rxe5 {[%clk 0:03:04.4]} 16. cxd5 {[%clk 0:03:08.7]} 16... Bxf1
{[%clk 0:03:05.3]} 17. Kxf1 {[%clk 0:03:09]} 17... cxd5 {[%clk 0:03:05.5]} 18.
f4 {[%clk 0:03:08.8]} 18... Re3 {[%clk 0:03:04.3]} 19. Bxd5 {[%clk 0:03:08]}
19... Rae8 {[%clk 0:02:56.9]} 20. Nd2 {[%clk 0:03:07.7]} 20... c6 {[%clk
0:02:43.7]} 21. Bg2 {[%clk 0:02:26.5]} 21... d5 {[%clk 0:02:19.9]} 22. Nf3
{[%clk 0:02:16.2]} 22... Rc3 {[%clk 0:02:08]} 23. Re1 {[%clk 0:02:02]} 23... Kf8
{[%clk 0:01:47.3]} 24. Rxe8+ {[%clk 0:01:50.3]} 24... Kxe8 {[%clk 0:01:47.3]}
25. Nd4 {[%clk 0:01:41.8]} 25... Kd7 {[%clk 0:01:24.4]} 26. Ke2 {[%clk
0:01:37.6]} 26... c5 {[%clk 0:01:14.5]} 27. Nf3 {[%clk 0:01:33.5]} 27... Rc2+
{[%clk 0:01:11.9]} 28. Nd2 {[%clk 0:01:34.1]} 28... Kd6 {[%clk 0:01:09.3]} 29.
a4 {[%clk 0:01:33.3]} 29... Rc3 {[%clk 0:01:05.4]} 30. Kd1 {[%clk 0:01:16]}
30... f6 {[%clk 0:01:04]} 31. Bf1 {[%clk 0:01:07.5]} 31... g5 {[%clk 0:01:00.2]}
32. fxg5 {[%clk 0:01:08.4]} 32... fxg5 {[%clk 0:01:00.9]} 33. Be2 {[%clk
0:00:49.1]} 33... Ke5 {[%clk 0:00:53.5]} 34. Nf3+ {[%clk 0:00:36.7]} 34... Ke4
{[%clk 0:00:44.5]} 35. Kd2 {[%clk 0:00:35.4]} 35... Rxf3 {[%clk 0:00:29.5]} 0-1

[Event "Early-Titled-Tuesday-Blitz-October-10-2023"]
[Site "Chess.com"]
[Date "2023.10.10"]
[Round "9"]
[White "hakanazeri2"]
[Black "subham777"]
[Result "0-1"]
[WhiteElo "2593"]
[BlackElo "2517"]
[TimeControl "180+1"]
[EndTime "9:43:10 PDT"]
[Termination "subham777 won on time"]

1. Nf3 {[%clk 0:02:04.9]} 1... d5 {[%clk 0:02:58]} 2. d4 {[%clk 0:02:04.7]} 2...
Nf6 {[%clk 0:02:58.1]} 3. c4 {[%clk 0:02:05.2]} 3... e6 {[%clk 0:02:58.6]} 4. g3
{[%clk 0:02:05.5]} 4... Be7 {[%clk 0:02:59.1]} 5. Bg2 {[%clk 0:02:06.1]} 5...
O-O {[%clk 0:02:59.6]} 6. O-O {[%clk 0:02:07]} 6... dxc4 {[%clk 0:03:00.2]} 7.
Qc2 {[%clk 0:02:07.7]} 7... a6 {[%clk 0:02:59.6]} 8. a4 {[%clk 0:02:08.2]} 8...
Bd7 {[%clk 0:02:59.5]} 9. Bg5 {[%clk 0:02:08.9]} 9... Bc6 {[%clk 0:02:58.5]} 10.
Rd1 {[%clk 0:02:09.2]} 10... b5 {[%clk 0:02:51.5]} 11. axb5 {[%clk 0:01:57.7]}
11... axb5 {[%clk 0:02:51.2]} 12. Rxa8 {[%clk 0:01:58.4]} 12... Bxa8 {[%clk
0:02:51.7]} 13. Nc3 {[%clk 0:01:58.5]} 13... b4 {[%clk 0:02:43.8]} 14. Bxf6
{[%clk 0:01:54.7]} 14... Bxf6 {[%clk 0:02:32.7]} 15. Ne4 {[%clk 0:01:55]} 15...
Bxe4 {[%clk 0:02:27.4]} 16. Qxe4 {[%clk 0:01:55.9]} 16... c5 {[%clk 0:02:22.5]}
17. d5 {[%clk 0:01:23.3]} 17... c3 {[%clk 0:02:12.2]} 18. bxc3 {[%clk
0:01:20.7]} 18... Bxc3 {[%clk 0:02:06.6]} 19. h4 {[%clk 0:01:20.3]} 19... h6
{[%clk 0:01:57.5]} 20. e3 {[%clk 0:01:09.6]} 20... Re8 {[%clk 0:01:50.7]} 21. d6
{[%clk 0:01:06.5]} 21... Nd7 {[%clk 0:01:44.1]} 22. Bf1 {[%clk 0:01:06.6]} 22...
Nf6 {[%clk 0:01:42.8]} 23. Qc6 {[%clk 0:01:06.7]} 23... Qa8 {[%clk 0:01:34.5]}
24. Bb5 {[%clk 0:00:19.2]} 24... Qxc6 {[%clk 0:01:26.6]} 25. Bxc6 {[%clk
0:00:20.1]} 25... Rd8 {[%clk 0:01:22.3]} 26. e4 {[%clk 0:00:18.9]} 26... e5
{[%clk 0:01:17.6]} 27. Ba4 {[%clk 0:00:11.9]} 27... Kf8 {[%clk 0:01:14.1]} 28.
Bc6 {[%clk 0:00:06.7]} 28... Ne8 {[%clk 0:01:03.2]} 29. Bxe8 {[%clk 0:00:04.7]}
29... Kxe8 {[%clk 0:01:02.9]} 30. Kf1 {[%clk 0:00:04.9]} 30... Kd7 {[%clk
0:01:02.5]} 31. Ke2 {[%clk 0:00:04.4]} 31... Kc6 {[%clk 0:01:01.8]} 32. d7
{[%clk 0:00:01.2]} 32... Rxd7 {[%clk 0:01:01.2]} 33. Rxd7 {[%clk 0:00:01.8]}
33... Kxd7 {[%clk 0:01:02.1]} 34. Kd3 {[%clk 0:00:02.3]} 34... Bd4 {[%clk
0:01:00.7]} 35. Kc4 {[%clk 0:00:00.9]} 35... Kd6 {[%clk 0:00:57.5]} 0-1

[Event "Early-Titled-Tuesday-Blitz-October-10-2023"]
[Site "Chess.com"]
[Date "2023.10.10"]
[Round "9"]
[White "Kielinkei"]
[Black "karwowskikacper"]
[Result "0-1"]
[WhiteElo "2447"]
[BlackElo "2553"]
[TimeControl "180+1"]
[EndTime "9:43:10 PDT"]
[Termination "karwowskikacper won on time"]

1. d4 {[%clk 0:03:00.9]} 1... d5 {[%clk 0:02:49.1]} 2. c4 {[%clk 0:03:00.8]}
2... e6 {[%clk 0:02:49.1]} 3. Nc3 {[%clk 0:03:00.7]} 3... a6 {[%clk 0:02:49.1]}
4. cxd5 {[%clk 0:03:00.4]} 4... exd5 {[%clk 0:02:50]} 5. Bf4 {[%clk 0:03:00.9]}
5... Nf6 {[%clk 0:02:48.7]} 6. e3 {[%clk 0:03:01]} 6... c5 {[%clk 0:02:48.1]} 7.
Nf3 {[%clk 0:03:00.6]} 7... c4 {[%clk 0:02:42.9]} 8. Be2 {[%clk 0:02:52.2]} 8...
b5 {[%clk 0:02:41.2]} 9. a3 {[%clk 0:02:41.6]} 9... Bb7 {[%clk 0:02:32.8]} 10.
O-O {[%clk 0:02:41.1]} 10... Nbd7 {[%clk 0:02:26.7]} 11. Ne5 {[%clk 0:02:41.2]}
11... Be7 {[%clk 0:02:24.6]} 12. Qc2 {[%clk 0:02:23.2]} 12... Ne4 {[%clk
0:02:08.7]} 13. Nxe4 {[%clk 0:02:14.5]} 13... dxe4 {[%clk 0:02:02.1]} 14. b3
{[%clk 0:02:08.5]} 14... cxb3 {[%clk 0:01:56.5]} 15. Qxb3 {[%clk 0:02:07.6]}
15... O-O {[%clk 0:01:49.1]} 16. Nxd7 {[%clk 0:02:05.5]} 16... Qxd7 {[%clk
0:01:44.1]} 17. Rac1 {[%clk 0:02:01.5]} 17... Rfc8 {[%clk 0:01:39.9]} 18. Qb2
{[%clk 0:01:39.3]} 18... Bd5 {[%clk 0:01:33.3]} 19. Rxc8+ {[%clk 0:01:25.9]}
19... Rxc8 {[%clk 0:01:32.9]} 20. Bd1 {[%clk 0:01:16.3]} 20... Qc6 {[%clk
0:01:27.1]} 21. Bb3 {[%clk 0:01:10.3]} 21... Bxb3 {[%clk 0:01:26.8]} 22. Qxb3
{[%clk 0:01:11.2]} 22... Qc4 {[%clk 0:01:27.1]} 23. Qb2 {[%clk 0:00:46.7]} 23...
Qc3 {[%clk 0:01:22.9]} 24. Qxc3 {[%clk 0:00:31.5]} 24... Rxc3 {[%clk 0:01:23.8]}
25. Rd1 {[%clk 0:00:30]} 25... Rxa3 {[%clk 0:01:20.5]} 26. Rc1 {[%clk
0:00:18.1]} 26... g5 {[%clk 0:01:14.7]} 27. Bb8 {[%clk 0:00:10.2]} 27... b4
{[%clk 0:00:53.5]} 28. d5 {[%clk 0:00:09.2]} 28... b3 {[%clk 0:00:53.6]} 29. Be5
{[%clk 0:00:06]} 29... f6 {[%clk 0:00:52.8]} 30. d6 {[%clk 0:00:04.4]} 30...
fxe5 {[%clk 0:00:52]} 31. dxe7 {[%clk 0:00:03.3]} 31... Kf7 {[%clk 0:00:52.6]}
0-1

[Event "Early-Titled-Tuesday-Blitz-October-10-2023"]
[Site "Chess.com"]
[Date "2023.10.10"]
[Round "9"]
[White "remi04"]
[Black "play1ngtheangel"]
[Result "1-0"]
[WhiteElo "2871"]
[BlackElo "2691"]
[TimeControl "180+1"]
[EndTime "9:43:19 PDT"]
[Termination "remi04 won by resignation"]

1. c4 {[%clk 0:03:00.9]} 1... Nf6 {[%clk 0:02:50]} 2. Nc3 {[%clk 0:03:01.1]}
2... e6 {[%clk 0:02:50]} 3. e4 {[%clk 0:03:01]} 3... d6 {[%clk 0:02:45]} 4. d4
{[%clk 0:03:00.9]} 4... Nbd7 {[%clk 0:02:45.7]} 5. Nf3 {[%clk 0:03:01.5]} 5...
e5 {[%clk 0:02:43.9]} 6. g3 {[%clk 0:03:01.3]} 6... Be7 {[%clk 0:02:43.3]} 7.
Bg2 {[%clk 0:03:01.6]} 7... O-O {[%clk 0:02:43.7]} 8. O-O {[%clk 0:03:02.2]}
8... c6 {[%clk 0:02:43]} 9. h3 {[%clk 0:03:01.6]} 9... Qc7 {[%clk 0:02:43.6]}
10. Re1 {[%clk 0:03:00]} 10... a5 {[%clk 0:02:43.3]} 11. Be3 {[%clk 0:02:56.1]}
11... Rd8 {[%clk 0:02:29.7]} 12. d5 {[%clk 0:02:54.7]} 12... Nb8 {[%clk
0:02:11.8]} 13. Rc1 {[%clk 0:02:52.9]} 13... Na6 {[%clk 0:02:11.8]} 14. Nd2
{[%clk 0:02:44.8]} 14... Nc5 {[%clk 0:02:00.6]} 15. Qc2 {[%clk 0:02:43.8]} 15...
g6 {[%clk 0:01:45.9]} 16. a3 {[%clk 0:02:42.8]} 16... a4 {[%clk 0:01:45.6]} 17.
Bxc5 {[%clk 0:02:40.1]} 17... dxc5 {[%clk 0:01:46.5]} 18. Nxa4 {[%clk
0:02:40.4]} 18... b6 {[%clk 0:01:47.1]} 19. Nc3 {[%clk 0:02:35.6]} 19... Nh5
{[%clk 0:01:32.5]} 20. dxc6 {[%clk 0:02:32.7]} 20... Qxc6 {[%clk 0:01:33.4]} 21.
Nd5 {[%clk 0:02:32.1]} 21... Bf8 {[%clk 0:01:31.4]} 22. Rcd1 {[%clk 0:02:26]}
22... Bb7 {[%clk 0:01:17]} 23. Qb3 {[%clk 0:02:15.8]} 23... Rd6 {[%clk
0:01:10.9]} 24. Nf1 {[%clk 0:02:09.1]} 24... Ng7 {[%clk 0:01:08.8]} 25. f4
{[%clk 0:01:55.9]} 25... Re8 {[%clk 0:01:04.3]} 26. Nfe3 {[%clk 0:01:53]} 26...
f6 {[%clk 0:00:59.1]} 27. fxe5 {[%clk 0:01:33.7]} 27... fxe5 {[%clk 0:01:00]}
28. Rf1 {[%clk 0:01:30.7]} 28... Nh5 {[%clk 0:00:53.2]} 29. Ng4 {[%clk
0:01:26.6]} 29... Ba6 {[%clk 0:00:33]} 30. Rf2 {[%clk 0:00:57.5]} 30... Kh8
{[%clk 0:00:28.8]} 31. Nxe5 {[%clk 0:00:53.1]} 31... Rxe5 {[%clk 0:00:26.4]} 32.
Rxf8+ {[%clk 0:00:53]} 32... Kg7 {[%clk 0:00:27.3]} 33. Rdf1 {[%clk 0:00:52.4]}
33... g5 {[%clk 0:00:05.7]} 34. Qf3 {[%clk 0:00:42.9]} 34... Nf4 {[%clk
0:00:05.2]} 35. gxf4 {[%clk 0:00:43.2]} 35... Kxf8 {[%clk 0:00:05.5]} 36. fxe5+
{[%clk 0:00:43.4]} 1-0

[Event "Early-Titled-Tuesday-Blitz-October-10-2023"]
[Site "Chess.com"]
[Date "2023.10.10"]
[Round "9"]
[White "Boxerandchessplayer"]
[Black "Jojo_898"]
[Result "1/2-1/2"]
[WhiteElo "2188"]
[BlackElo "2388"]
[TimeControl "180+1"]
[EndTime "9:43:20 PDT"]
[Termination "Game drawn by repetition"]

1. d4 {[%clk 0:03:00.9]} 1... Nf6 {[%clk 0:02:59]} 2. Nf3 {[%clk 0:03:00.5]}
2... g6 {[%clk 0:02:57]} 3. Nbd2 {[%clk 0:03:00.5]} 3... Bg7 {[%clk 0:02:56.4]}
4. e4 {[%clk 0:03:00.3]} 4... d6 {[%clk 0:02:56.9]} 5. Bb5+ {[%clk 0:03:00.6]}
5... c6 {[%clk 0:02:56.3]} 6. Bd3 {[%clk 0:03:01.2]} 6... O-O {[%clk 0:02:56.4]}
7. O-O {[%clk 0:03:01.8]} 7... Nbd7 {[%clk 0:02:56.5]} 8. a4 {[%clk 0:03:02.1]}
8... e5 {[%clk 0:02:56.7]} 9. dxe5 {[%clk 0:03:02.3]} 9... dxe5 {[%clk
0:02:56.3]} 10. b4 {[%clk 0:03:01.7]} 10... Qe7 {[%clk 0:02:55.7]} 11. Bb2
{[%clk 0:02:46]} 11... Rd8 {[%clk 0:02:48.2]} 12. c3 {[%clk 0:02:30.6]} 12...
Nh5 {[%clk 0:02:44.8]} 13. Qc2 {[%clk 0:02:25.1]} 13... Nf4 {[%clk 0:02:43.8]}
14. Bc4 {[%clk 0:02:23.6]} 14... Nb6 {[%clk 0:02:38.1]} 15. Bb3 {[%clk
0:02:19.7]} 15... Bg4 {[%clk 0:02:37.1]} 16. a5 {[%clk 0:02:15.4]} 16... Nd7
{[%clk 0:02:32.8]} 17. h3 {[%clk 0:02:15.5]} 17... Bh5 {[%clk 0:02:25.6]} 18.
Rfe1 {[%clk 0:02:10.2]} 18... c5 {[%clk 0:02:06.6]} 19. b5 {[%clk 0:02:06.3]}
19... Rac8 {[%clk 0:02:03.4]} 20. Bc4 {[%clk 0:02:02.7]} 20... Bh6 {[%clk
0:01:56.6]} 21. Bf1 {[%clk 0:01:58.2]} 21... Qf6 {[%clk 0:01:54.7]} 22. g4
{[%clk 0:01:37.7]} 22... Bxg4 {[%clk 0:01:33]} 23. hxg4 {[%clk 0:01:34.9]} 23...
Qe6 {[%clk 0:01:33.5]} 24. Nh2 {[%clk 0:01:30.9]} 24... Nf6 {[%clk 0:01:33]} 25.
Bc4 {[%clk 0:01:16.6]} 25... Qd7 {[%clk 0:01:08.2]} 26. Ndf3 {[%clk 0:01:11.6]}
26... Nxg4 {[%clk 0:01:08.3]} 27. Rad1 {[%clk 0:01:01.1]} 27... Nxh2 {[%clk
0:01:04.9]} 28. Rxd7 {[%clk 0:00:27.3]} 28... Nxf3+ {[%clk 0:01:04.9]} 29. Kf1
{[%clk 0:00:28]} 29... Rxd7 {[%clk 0:01:00.8]} 30. Rd1 {[%clk 0:00:27.7]} 30...
Rcd8 {[%clk 0:01:00]} 31. Rxd7 {[%clk 0:00:21.9]} 31... Rxd7 {[%clk 0:01:00.9]}
32. Bc1 {[%clk 0:00:18.3]} 32... Nh2+ {[%clk 0:00:51]} 33. Kg1 {[%clk
0:00:18.8]} 33... Nf3+ {[%clk 0:00:50.5]} 34. Kf1 {[%clk 0:00:18.1]} 34... Nh2+
{[%clk 0:00:50.5]} 35. Kg1 {[%clk 0:00:18.4]} 35... Nf3+ {[%clk 0:00:42.8]} 36.
Kf1 {[%clk 0:00:12.4]} 1/2-1/2

[Event "Early-Titled-Tuesday-Blitz-October-10-2023"]
[Site "Chess.com"]
[Date "2023.10.10"]
[Round "9"]
[White "santosalberto1987"]
[Black "cukin84"]
[Result "1-0"]
[WhiteElo "2451"]
[BlackElo "2202"]
[TimeControl "180+1"]
[EndTime "9:43:24 PDT"]
[Termination "santosalberto1987 won by resignation"]

1. e4 {[%clk 0:03:00.9]} 1... c6 {[%clk 0:02:59.4]} 2. c4 {[%clk 0:03:00.9]}
2... d5 {[%clk 0:02:59.5]} 3. cxd5 {[%clk 0:03:01.8]} 3... cxd5 {[%clk
0:02:59.8]} 4. exd5 {[%clk 0:03:02.1]} 4... Nf6 {[%clk 0:03:00.1]} 5. Qa4+
{[%clk 0:03:02.4]} 5... Nbd7 {[%clk 0:02:59.4]} 6. Bc4 {[%clk 0:03:02.5]} 6...
g6 {[%clk 0:02:57.9]} 7. Nc3 {[%clk 0:03:02.5]} 7... Bg7 {[%clk 0:02:57.4]} 8.
Nf3 {[%clk 0:03:03.1]} 8... O-O {[%clk 0:02:57.4]} 9. d3 {[%clk 0:03:03.5]} 9...
Nb6 {[%clk 0:02:56.8]} 10. Qb3 {[%clk 0:03:03.5]} 10... Bg4 {[%clk 0:02:51.6]}
11. Ne5 {[%clk 0:03:03.4]} 11... Qd6 {[%clk 0:02:42]} 12. Nxg4 {[%clk
0:03:02.2]} 12... Nxg4 {[%clk 0:02:41.5]} 13. h3 {[%clk 0:03:02.9]} 13... Ne5
{[%clk 0:02:39.2]} 14. Be3 {[%clk 0:02:58.2]} 14... Nbxc4 {[%clk 0:02:30.2]} 15.
dxc4 {[%clk 0:02:58.2]} 15... Rac8 {[%clk 0:02:28.9]} 16. c5 {[%clk 0:02:53.9]}
16... Nd3+ {[%clk 0:02:26.7]} 17. Ke2 {[%clk 0:02:54.1]} 17... Nxc5 {[%clk
0:02:23.6]} 18. Qb4 {[%clk 0:02:54]} 18... Qa6+ {[%clk 0:02:21.4]} 19. Qb5
{[%clk 0:02:52.9]} 19... Qd6 {[%clk 0:02:07.8]} 20. Rac1 {[%clk 0:02:48.7]}
20... a6 {[%clk 0:02:04]} 21. Qb4 {[%clk 0:02:48.3]} 21... b6 {[%clk 0:02:01.3]}
22. Rhd1 {[%clk 0:02:44.6]} 22... Qe5 {[%clk 0:01:50.7]} 23. Kf1 {[%clk
0:02:38.5]} 23... Qh2 {[%clk 0:01:47.3]} 24. Qxb6 {[%clk 0:02:34.8]} 24... Nd7
{[%clk 0:01:32.8]} 25. Qb7 {[%clk 0:02:34.1]} 25... Ne5 {[%clk 0:01:22.4]} 26.
Ne2 {[%clk 0:02:34.1]} 26... Rxc1 {[%clk 0:01:16.8]} 27. Rxc1 {[%clk 0:02:35]}
27... Nd3 {[%clk 0:01:11.4]} 28. Rc8 {[%clk 0:02:30.1]} 28... h5 {[%clk
0:01:05.8]} 29. Rxf8+ {[%clk 0:02:29.4]} 29... Bxf8 {[%clk 0:01:05.6]} 30. b4
{[%clk 0:02:25.3]} 30... Qe5 {[%clk 0:00:56.3]} 31. Kg1 {[%clk 0:02:19.1]} 31...
Qa1+ {[%clk 0:00:54.4]} 32. Kh2 {[%clk 0:02:19.2]} 32... Qe1 {[%clk 0:00:50]}
33. Qc8 {[%clk 0:01:38.8]} 33... Nxf2 {[%clk 0:00:32.3]} 34. Bh6 {[%clk
0:01:27.5]} 34... Qh1+ {[%clk 0:00:31.3]} 35. Kg3 {[%clk 0:01:27.8]} 35... Ne4+
{[%clk 0:00:31.3]} 36. Kf3 {[%clk 0:01:09]} 36... Qf1+ {[%clk 0:00:28.4]} 37.
Ke3 {[%clk 0:00:58.6]} 37... Qf2+ {[%clk 0:00:20.5]} 38. Kd3 {[%clk 0:00:58.7]}
38... Kh7 {[%clk 0:00:13.9]} 39. Qxf8 {[%clk 0:00:57.8]} 39... Qf6 {[%clk
0:00:12.4]} 40. Kxe4 {[%clk 0:00:56]} 40... Qf5+ {[%clk 0:00:09.9]} 41. Ke3
{[%clk 0:00:55.8]} 41... Qe5+ {[%clk 0:00:09.4]} 42. Kf2 {[%clk 0:00:56.1]}
42... Qf5+ {[%clk 0:00:05.5]} 43. Kg1 {[%clk 0:00:56.2]} 1-0

[Event "Early-Titled-Tuesday-Blitz-October-10-2023"]
[Site "Chess.com"]
[Date "2023.10.10"]
[Round "9"]
[White "viktorgen2021"]
[Black "kuanysh1981"]
[Result "0-1"]
[WhiteElo "2387"]
[BlackElo "2533"]
[TimeControl "180+1"]
[EndTime "9:43:31 PDT"]
[Termination "kuanysh1981 won by checkmate"]

1. d4 {[%clk 0:02:50]} 1... Nf6 {[%clk 0:02:58.8]} 2. c4 {[%clk 0:02:50.1]} 2...
e6 {[%clk 0:02:55.2]} 3. Nf3 {[%clk 0:02:48.7]} 3... d5 {[%clk 0:02:55.1]} 4. g3
{[%clk 0:02:49.3]} 4... dxc4 {[%clk 0:02:51.9]} 5. Qa4+ {[%clk 0:02:48.4]} 5...
Bd7 {[%clk 0:02:50.7]} 6. Qxc4 {[%clk 0:02:39.4]} 6... Bc6 {[%clk 0:02:51.6]} 7.
Bg2 {[%clk 0:02:38.4]} 7... Nbd7 {[%clk 0:02:51.4]} 8. O-O {[%clk 0:02:38.1]}
8... Bd6 {[%clk 0:02:48.4]} 9. Nc3 {[%clk 0:02:37.9]} 9... Nb6 {[%clk
0:02:42.7]} 10. Qd3 {[%clk 0:02:36.8]} 10... Nbd5 {[%clk 0:02:39.1]} 11. Nxd5
{[%clk 0:02:20.5]} 11... Bxd5 {[%clk 0:02:36.6]} 12. Bg5 {[%clk 0:02:15.7]}
12... Be7 {[%clk 0:02:28]} 13. Bxf6 {[%clk 0:02:14.2]} 13... Bxf6 {[%clk
0:02:27.2]} 14. e4 {[%clk 0:02:12.8]} 14... Bc6 {[%clk 0:02:26.6]} 15. Rfd1
{[%clk 0:02:11.5]} 15... O-O {[%clk 0:02:21.7]} 16. Rac1 {[%clk 0:02:03.6]}
16... Rc8 {[%clk 0:02:19.2]} 17. h4 {[%clk 0:01:42.3]} 17... h6 {[%clk
0:02:18.5]} 18. Bh3 {[%clk 0:01:25.2]} 18... Bd7 {[%clk 0:02:05.3]} 19. Bg2
{[%clk 0:01:22.4]} 19... a6 {[%clk 0:02:02.4]} 20. b3 {[%clk 0:01:19.7]} 20...
g6 {[%clk 0:01:53.5]} 21. Qe3 {[%clk 0:01:15.6]} 21... Bg7 {[%clk 0:01:51.7]}
22. h5 {[%clk 0:01:16.1]} 22... g5 {[%clk 0:01:42.1]} 23. Ne5 {[%clk 0:01:12.8]}
23... Be8 {[%clk 0:01:36]} 24. Ng4 {[%clk 0:01:01.9]} 24... Qe7 {[%clk
0:01:29.5]} 25. e5 {[%clk 0:01:00.6]} 25... c6 {[%clk 0:01:29.3]} 26. Rc3 {[%clk
0:00:52.9]} 26... Rd8 {[%clk 0:01:28.3]} 27. Be4 {[%clk 0:00:52.6]} 27... f5
{[%clk 0:01:26]} 28. exf6 {[%clk 0:00:52.7]} 28... Bxf6 {[%clk 0:01:26.6]} 29.
Nxh6+ {[%clk 0:00:52.7]} 29... Kg7 {[%clk 0:01:23.6]} 30. Ng4 {[%clk 0:00:49.9]}
30... Bxh5 {[%clk 0:01:23.4]} 31. f3 {[%clk 0:00:37.2]} 31... Bxg4 {[%clk
0:01:13.6]} 32. fxg4 {[%clk 0:00:38.1]} 32... Rh8 {[%clk 0:01:13.5]} 33. Bb1
{[%clk 0:00:32.7]} 33... Qd6 {[%clk 0:01:09.3]} 34. Qe4 {[%clk 0:00:31.7]} 34...
Rh6 {[%clk 0:01:02.5]} 35. Rf3 {[%clk 0:00:23.6]} 35... Rdh8 {[%clk 0:00:54.4]}
36. Rff1 {[%clk 0:00:16.3]} 36... Qxg3+ {[%clk 0:00:48.5]} 37. Qg2 {[%clk
0:00:14.6]} 37... Rh1# {[%clk 0:00:29.5]} 0-1

[Event "Early-Titled-Tuesday-Blitz-October-10-2023"]
[Site "Chess.com"]
[Date "2023.10.10"]
[Round "9"]
[White "Harry_Rakkel"]
[Black "Man-Chuk"]
[Result "1-0"]
[WhiteElo "2659"]
[BlackElo "2752"]
[TimeControl "180+1"]
[EndTime "9:43:34 PDT"]
[Termination "Harry_Rakkel won by resignation"]

1. e4 {[%clk 0:02:55.7]} 1... c5 {[%clk 0:02:59.3]} 2. Nf3 {[%clk 0:02:54.5]}
2... d6 {[%clk 0:02:59.4]} 3. d4 {[%clk 0:02:54.4]} 3... cxd4 {[%clk 0:03:00.3]}
4. Nxd4 {[%clk 0:02:54.8]} 4... Nf6 {[%clk 0:03:00.9]} 5. Nc3 {[%clk 0:02:54.5]}
5... a6 {[%clk 0:03:01.2]} 6. Be3 {[%clk 0:02:54.1]} 6... e6 {[%clk 0:02:56]} 7.
Be2 {[%clk 0:02:47.7]} 7... Be7 {[%clk 0:02:55.3]} 8. O-O {[%clk 0:02:37]} 8...
O-O {[%clk 0:02:55.3]} 9. a4 {[%clk 0:02:27.4]} 9... Nc6 {[%clk 0:02:54.5]} 10.
f4 {[%clk 0:02:24.3]} 10... Qc7 {[%clk 0:02:48.3]} 11. Kh1 {[%clk 0:02:22.5]}
11... Bd7 {[%clk 0:02:35.7]} 12. Qe1 {[%clk 0:02:17.3]} 12... Rfd8 {[%clk
0:02:24.7]} 13. Rd1 {[%clk 0:02:10]} 13... Nxd4 {[%clk 0:02:18.9]} 14. Bxd4
{[%clk 0:02:05.6]} 14... Bc6 {[%clk 0:02:19.2]} 15. Bd3 {[%clk 0:01:55.5]} 15...
e5 {[%clk 0:02:10.2]} 16. Be3 {[%clk 0:01:47.6]} 16... Ng4 {[%clk 0:02:05.9]}
17. Bc4 {[%clk 0:01:35]} 17... Rf8 {[%clk 0:01:38]} 18. Bb3 {[%clk 0:01:12.5]}
18... Nxe3 {[%clk 0:01:15.1]} 19. Qxe3 {[%clk 0:01:11.7]} 19... exf4 {[%clk
0:01:16]} 20. Qxf4 {[%clk 0:01:10]} 20... Bf6 {[%clk 0:01:15.5]} 21. Nd5 {[%clk
0:01:02.8]} 21... Bxd5 {[%clk 0:01:15.3]} 22. Rxd5 {[%clk 0:01:03.7]} 22... Bxb2
{[%clk 0:01:00]} 23. Rf5 {[%clk 0:01:02.7]} 23... Kh8 {[%clk 0:00:50.8]} 24.
Bxf7 {[%clk 0:00:49.3]} 24... Be5 {[%clk 0:00:22.8]} 25. Qh4 {[%clk 0:00:46.5]}
25... h6 {[%clk 0:00:23.2]} 26. c4 {[%clk 0:00:32.6]} 26... Qd8 {[%clk
0:00:15.6]} 27. Qh5 {[%clk 0:00:31.2]} 27... Qe7 {[%clk 0:00:15.2]} 28. h4
{[%clk 0:00:29.2]} 28... Rac8 {[%clk 0:00:11.9]} 29. g4 {[%clk 0:00:28.4]} 29...
Bf6 {[%clk 0:00:07]} 30. Bd5 {[%clk 0:00:28.5]} 30... Be5 {[%clk 0:00:02.5]} 31.
Rf7 {[%clk 0:00:24.8]} 31... Rxf7 {[%clk 0:00:02.7]} 32. Rxf7 {[%clk 0:00:25.7]}
32... Qd7 {[%clk 0:00:02.2]} 33. Rxd7 {[%clk 0:00:24.5]} 1-0